fUSD/lending_fUSD_20240205
["ID","MTS","AMOUNT","RATE_DAILY","PERIOD"]
[313292600,1707095470503,-2177.23,0.00042465,5]
[313292601,1707095470517,-500.0,0.00042465,2]
[313292602,1707095470531,-598.05,0.00042465,2]
[313292603,1707095470546,-500.0,0.00042465,2]
[313292604,1707095470560,-500.0,0.00042465,2]
[313292605,1707095470575,-500.97,0.00042465,2]
[313292606,1707095470590,-500.0,0.00042465,2]
[313292607,1707095470606,-500.0,0.00042465,2]
[313292608,1707095470621,-500.0,0.00042465,2]
[313292609,1707095470636,-500.0,0.00042465,2]
[313292610,1707095470651,-500.0,0.00042465,2]
[313292611,1707095470665,-500.0,0.00042465,2]
[313292612,1707095470680,-500.0,0.00042465,2]
[313292613,1707095470696,-500.0,0.00042465,2]
[313292614,1707095470710,-500.0,0.00042465,2]
[313292615,1707095470723,-500.0,0.00042465,2]
[313292616,1707095470737,-500.0,0.00042465,2]
[313292617,1707095470863,-776.5,0.00042465,2]
[313292618,1707095470874,-500.0,0.00042465,2]
[313292619,1707095470883,-500.0,0.00042465,2]
[313292620,1707095470893,-500.0,0.00042465,2]
[313292621,1707095470902,-171.0205,0.00042498,17]
[313292622,1707095470911,-755.4247957,0.000425,10]
[313292623,1707095470920,-3209.00044,0.000425,2]
[313292624,1707095470929,-300.0,0.000425,40]
[313292625,1707095470938,-1000.0,0.000425,2]
[313292626,1707095470951,-187.0,0.00042581,2]
[313292627,1707095470960,-171.0205,0.00042598,17]
[313292628,1707095470969,-200.0,0.000426,18]
[313292629,1707095470979,-159.0,0.00042693,2]
[313292630,1707095470988,-375.47,0.00042698,2]
[313292631,1707095470997,-171.0205,0.00042798,17]
[313292632,1707095471007,-319.02851447,0.000428,41]
[313292633,1707095471016,-16195.94,0.000428,7]
[313292634,1707095471025,-300.0,0.000428,18]
[313292635,1707095471034,-200.0,0.000428,52]
[313292636,1707095471044,-723.03575259,0.00042888,32]
[313292637,1707095471053,-933.8156262,0.000429,2]
[313292638,1707095471066,-100000.0,0.00043,23]
[313292639,1707095471075,-300.0,0.00043,41]
[313292640,1707095471085,-15367.38,0.00043,7]
[313292641,1707095471094,-12164.96,0.00043,7]
[313292642,1707095471104,-1500.0,0.00043,7]
[313292643,1707095471114,-1700.0,0.00043,3]
[313292644,1707095471123,-6534.57829593,0.00043,30]
[313292645,1707095471134,-10000.0,0.00043,30]
[313292646,1707095471143,-10000.0,0.00043,30]
[313292647,1707095471152,-300.0,0.000431,19]
[313292648,1707095471161,-200.0,0.000431,19]
[313292649,1707095471170,-6661.0,0.0004319,2]
[313292650,1707095471180,-4359.0,0.0004319,2]
[313292651,1707095471189,-171.0205,0.00043198,21]
[313292652,1707095471200,-166.0,0.000432,7]
[313292653,1707095471208,-3016.7502,0.00043257,2]
[313292654,1707095471217,-500.0,0.00043287,2]
[313292655,1707095471226,-1031.1,0.00043287,7]
[313292656,1707095471235,-500.0,0.00043287,2]
[313292657,1707095471244,-500.0,0.00043287,2]
[313292658,1707095471253,-553.67,0.00043287,2]
[313292659,1707095471263,-500.0,0.00043287,2]
[313292660,1707095471272,-500.0,0.00043287,2]
[313292661,1707095471281,-500.0,0.00043287,2]
[313292662,1707095471290,-642.0208808,0.00043287,2]
[313292663,1707095471300,-1044.03,0.00043287,2]
[313292664,1707095471309,-500.0,0.00043287,2]
[313292665,1707095471318,-500.0,0.00043287,2]
[313292666,1707095471327,-500.0,0.00043287,2]
[313292667,1707095471336,-500.0,0.00043287,2]
[313292668,1707095471345,-500.0,0.00043287,2]
[313292669,1707095471354,-803.85,0.00043287,30]
[313292670,1707095471363,-608.81,0.00043287,2]
[313292671,1707095471373,-261.35854009,0.00043287,2]
[313292672,1707095471382,-911.94,0.00043287,7]
[313292673,1707095471391,-500.0,0.00043287,2]
[313292674,1707095471400,-500.0,0.00043287,2]
[313292675,1707095471409,-1072.12,0.00043287,2]
[313292676,1707095471419,-500.0,0.00043287,2]
[313292677,1707095471429,-947.41,0.00043287,20]
[313292678,1707095471438,-500.0,0.00043287,2]
[313292679,1707095471449,-645.15,0.00043287,2]
[313292680,1707095471459,-1039.15,0.00043287,2]
[313292681,1707095471469,-608.11703514,0.00043287,10]
[313292682,1707095471478,-1000.0,0.00043287,30]
[313292683,1707095471487,-500.0,0.00043287,2]
[313292684,1707095471496,-500.0,0.00043287,2]
[313292685,1707095471505,-490.69797838,0.00043287,2]
[313292686,1707095471515,-1171.17,0.00043287,2]
[313292687,1707095471524,-500.0,0.00043287,2]
[313292688,1707095471533,-883.87,0.00043287,2]
[313292689,1707095471542,-828.79,0.00043287,2]
[313292690,1707095471551,-500.0,0.00043287,2]
[313292691,1707095471559,-623.3,0.00043287,2]
[313292692,1707095471569,-500.0,0.00043287,2]
[313292693,1707095471578,-3906.28,0.00043287,2]
[313292694,1707095471587,-500.0,0.00043287,2]
[313292695,1707095471596,-366.12357422,0.00043287,2]
[313292696,1707095471605,-500.0,0.00043287,2]
[313292697,1707095471614,-500.0,0.00043287,2]
[313292698,1707095471623,-150.31632475,0.00043287,2]
[313292699,1707095471632,-3442.61,0.00043287,2]
[313292700,1707095471641,-500.0,0.00043287,2]
[313292701,1707095471650,-219.8,0.00043287,2]
[313292702,1707095471658,-500.0,0.00043287,2]
[313292703,1707095471668,-500.0,0.00043287,2]
[313292704,1707095471677,-500.0,0.00043287,2]
[313292705,1707095471687,-500.0,0.00043287,2]
[313292706,1707095471697,-500.0,0.00043287,2]
[313292707,1707095471706,-500.0,0.00043287,2]
[313292708,1707095471715,-500.0,0.00043287,2]
[313292709,1707095471724,-1766.17,0.00043287,5]
[313292710,1707095471733,-717.49,0.00043287,2]
[313292711,1707095471742,-2896.55,0.00043287,2]
[313292712,1707095471751,-371.55993211,0.00043287,2]
[313292713,1707095471761,-1943.62,0.00043287,2]
[313292714,1707095471770,-882.82,0.00043287,2]
[313292715,1707095471779,-500.0,0.00043287,2]
[313292716,1707095471788,-500.0,0.00043287,2]
[313292717,1707095471797,-500.0,0.00043287,2]
[313292718,1707095471806,-500.0,0.00043287,2]
[313292719,1707095471816,-500.0,0.00043287,2]
[313292720,1707095471825,-500.0,0.00043287,2]
[313292721,1707095471834,-500.0,0.00043287,2]
[313292722,1707095471843,-500.0,0.00043287,2]
[313292723,1707095471852,-456.48523715,0.00043287,2]
[313292724,1707095471862,-500.0,0.00043287,2]
[313292725,1707095471871,-633.54,0.00043287,2]
[313292726,1707095471881,-2280.46,0.00043287,2]
[313292727,1707095471890,-666.48,0.00043287,2]
[313292728,1707095471899,-1000.0,0.00043287,7]
[313292729,1707095471908,-412.69215306,0.00043287,2]
[313292730,1707095471918,-787.28,0.00043287,2]
[313292731,1707095471927,-1000.0,0.00043287,7]
[313292732,1707095471936,-205.35793048,0.00043287,2]
[313292733,1707095471946,-500.0,0.00043287,2]
[313292734,1707095471956,-500.0,0.00043287,2]
[313292735,1707095471965,-500.0,0.00043287,2]
[313292736,1707095471975,-500.0,0.00043287,2]
[313292737,1707095471984,-500.0,0.00043287,2]
[313292738,1707095471994,-500.0,0.00043287,2]
[313292739,1707095472003,-500.0,0.00043287,2]
[313292740,1707095472013,-500.0,0.00043287,2]
[313292741,1707095472022,-500.0,0.00043287,2]
[313292742,1707095472031,-645.30689017,0.00043287,2]
[313292743,1707095472041,-500.0,0.00043287,2]
[313292744,1707095472050,-500.0,0.00043287,2]
[313292745,1707095472060,-500.0,0.00043287,2]
[313292746,1707095472069,-1162.55,0.00043287,2]
[313292747,1707095472078,-2177.23,0.00043287,5]
[313292748,1707095472087,-500.0,0.00043287,2]
[313292749,1707095472098,-598.05,0.00043287,2]
[313292750,1707095472109,-500.0,0.00043287,2]
[313292751,1707095472118,-500.0,0.00043287,2]
[313292752,1707095472128,-500.97,0.00043287,2]
[313292753,1707095472138,-500.0,0.00043287,2]
[313292754,1707095472147,-500.0,0.00043287,2]
[313292755,1707095472157,-500.0,0.00043287,2]
[313292756,1707095472166,-500.0,0.00043287,2]
[313292757,1707095472175,-500.0,0.00043287,2]
[313292758,1707095472185,-500.0,0.00043287,2]
[313292759,1707095472194,-500.0,0.00043287,2]
[313292760,1707095472205,-500.0,0.00043287,2]
[313292761,1707095472214,-500.0,0.00043287,2]
[313292762,1707095472223,-500.0,0.00043287,2]
[313292763,1707095472233,-164.06740902,0.00043287,2]
[313292764,1707095472242,-776.5,0.00043287,2]
[313292765,1707095472251,-500.0,0.00043287,2]
[313292766,1707095472261,-500.0,0.00043287,2]
[313292767,1707095472271,-500.0,0.00043287,2]
[313292768,1707095472280,-9756.90757345,0.000433,30]
[313292769,1707095472289,-16195.94,0.000433,7]
[313292770,1707095472298,-150.0,0.00043403,2]
[313292771,1707095472307,-171.0205,0.00043498,21]
[313292772,1707095472317,-300.0,0.000435,42]
[313292773,1707095472326,-1542.0,0.0004359,2]
[313292774,1707095472336,-171.0205,0.00043598,17]
[313292775,1707095472345,-25671.0,0.0004369,2]
[313292776,1707095472355,-17006.0,0.0004369,2]
[313292777,1707095472364,-254412.56376652,0.000437,2]
[313292778,1707095472454,-1832.4025718,0.0004377,2]
[313292779,1707095472465,-27540.5483333,0.00043776,2]
[313292780,1707095472474,-2361.8588757,0.00043776,2]
[313292781,1707095472484,-171.0205,0.00043798,21]
[313292782,1707095472493,-10211.23266846,0.000438,30]
[313292783,1707095472502,-16195.94,0.000438,7]
[313292784,1707095472511,-300.0,0.000438,19]
[313292785,1707095472520,-200.0,0.000438,56]
[313292786,1707095472530,-4000.0,0.000438,2]
[313292787,1707095472539,-666.0,0.00043835,2]
[313292788,1707095472549,-2104.36,0.00043836,15]
[313292789,1707095472558,-471.37162484,0.00043836,23]
[313292790,1707095472567,-41039.276661,0.00043836,7]
[313292791,1707095472576,-933.8156262,0.000439,2]
[313292792,1707095472584,-300.0,0.000439,16]
[313292793,1707095472594,-3566.68812688,0.0004398,117]
[313292794,1707095472603,-100000.0,0.00044,24]
[313292795,1707095472612,-997.00685585,0.00044,30]
[313292796,1707095472621,-11000.0,0.00044,4]
[313292797,1707095472630,-160.02,0.00044,7]
[313292798,1707095472638,-300.0,0.00044,43]
[313292799,1707095472648,-276467.86549086,0.00044,15]
[313292800,1707095472657,-6533.0,0.00044,30]
[313292801,1707095472667,-10000.0,0.00044,30]
[313292802,1707095472677,-10000.0,0.00044,30]
[313292803,1707095472686,-5743.0,0.0004409,2]
[313292804,1707095472696,-3763.0,0.0004409,2]
[313292805,1707095472706,-166.0,0.000441,7]
[313292806,1707095472715,-300.0,0.000441,20]
[313292807,1707095472725,-200.0,0.000441,2]
[313292808,1707095472735,-500.0,0.00044109,2]
[313292809,1707095472744,-1031.1,0.00044109,7]
[313292810,1707095472753,-500.0,0.00044109,2]
[313292811,1707095472762,-500.0,0.00044109,2]
[313292812,1707095472771,-553.67,0.00044109,2]
[313292813,1707095472780,-629.13622516,0.00044109,2]
[313292814,1707095472790,-500.0,0.00044109,2]
[313292815,1707095472799,-489.63072626,0.00044109,2]
[313292816,1707095472808,-1044.03,0.00044109,2]
[313292817,1707095472818,-500.0,0.00044109,2]
[313292818,1707095472828,-500.0,0.00044109,2]
[313292819,1707095472838,-500.0,0.00044109,2]
[313292820,1707095472848,-522.68154487,0.00044109,2]
[313292821,1707095472857,-245.80088544,0.00044109,2]
[313292822,1707095472867,-803.85,0.00044109,30]
[313292823,1707095472876,-608.81,0.00044109,2]
[313292824,1707095472885,-911.94,0.00044109,7]
[313292825,1707095472894,-500.0,0.00044109,2]
[313292826,1707095472904,-415.31494587,0.00044109,2]
[313292827,1707095472913,-1072.12,0.00044109,2]
[313292828,1707095472923,-500.0,0.00044109,2]
[313292829,1707095472933,-947.41,0.00044109,20]
[313292830,1707095472942,-500.0,0.00044109,2]
[313292831,1707095472956,-645.15,0.00044109,2]
[313292832,1707095472965,-1039.15,0.00044109,2]
[313292833,1707095472975,-1000.0,0.00044109,30]
[313292834,1707095472985,-543.14461246,0.00044109,2]
[313292835,1707095472994,-500.0,0.00044109,2]
[313292836,1707095473004,-1171.17,0.00044109,2]
[313292837,1707095473013,-525.04361927,0.00044109,2]
[313292838,1707095473022,-883.87,0.00044109,2]
[313292839,1707095473032,-828.79,0.00044109,2]
[313292840,1707095473041,-500.0,0.00044109,2]
[313292841,1707095473050,-623.3,0.00044109,2]
[313292842,1707095473060,-500.0,0.00044109,2]
[313292843,1707095473069,-3906.28,0.00044109,2]
[313292844,1707095473079,-500.0,0.00044109,2]
[313292845,1707095473088,-500.0,0.00044109,2]
[313292846,1707095473098,-500.0,0.00044109,2]
[313292847,1707095473110,-3442.61,0.00044109,2]
[313292848,1707095473119,-500.0,0.00044109,2]
[313292849,1707095473129,-314.39719244,0.00044109,2]
[313292850,1707095473138,-500.0,0.00044109,2]
[313292851,1707095473148,-500.0,0.00044109,2]
[313292852,1707095473158,-500.0,0.00044109,2]
[313292853,1707095473167,-500.0,0.00044109,2]
[313292854,1707095473176,-500.0,0.00044109,2]
[313292855,1707095473186,-500.0,0.00044109,2]
[313292856,1707095473195,-1766.17,0.00044109,5]
[313292857,1707095473208,-717.49,0.00044109,2]
[313292858,1707095473217,-2896.55,0.00044109,2]
[313292859,1707095473226,-1943.62,0.00044109,2]
[313292860,1707095473234,-882.82,0.00044109,2]
[313292861,1707095473243,-500.0,0.00044109,2]
[313292862,1707095473252,-500.0,0.00044109,2]
[313292863,1707095473262,-574.92634837,0.00044109,2]
[313292864,1707095473272,-500.0,0.00044109,2]
[313292865,1707095473281,-500.0,0.00044109,2]
[313292866,1707095473295,-500.0,0.00044109,2]
[313292867,1707095473304,-500.0,0.00044109,2]
[313292868,1707095473314,-500.0,0.00044109,2]
[313292869,1707095473323,-633.54,0.00044109,2]
[313292870,1707095473333,-570.58276189,0.00044109,2]
[313292871,1707095473343,-2280.46,0.00044109,2]
[313292872,1707095473352,-666.48,0.00044109,2]
[313292873,1707095473362,-1000.0,0.00044109,7]
[313292874,1707095473372,-787.28,0.00044109,2]
[313292875,1707095473382,-1000.0,0.00044109,7]
[313292876,1707095473391,-500.0,0.00044109,2]
[313292877,1707095473402,-500.0,0.00044109,2]
[313292878,1707095473412,-500.0,0.00044109,2]
[313292879,1707095473422,-500.0,0.00044109,2]
[313292880,1707095473431,-500.0,0.00044109,2]
[313292881,1707095473441,-500.0,0.00044109,2]
[313292882,1707095473456,-500.0,0.00044109,2]
[313292883,1707095473465,-500.0,0.00044109,2]
[313292884,1707095473475,-500.0,0.00044109,2]
[313292885,1707095473485,-500.0,0.00044109,2]
[313292886,1707095473495,-252.73052263,0.00044109,2]
[313292887,1707095473505,-500.0,0.00044109,2]
[313292888,1707095473515,-1162.55,0.00044109,2]
[313292889,1707095473525,-2177.23,0.00044109,5]
[313292890,1707095473535,-500.0,0.00044109,2]
[313292891,1707095473545,-598.05,0.00044109,2]
[313292892,1707095473555,-500.0,0.00044109,2]
[313292893,1707095473564,-536.65387319,0.00044109,2]
[313292894,1707095473575,-500.97,0.00044109,2]
[313292895,1707095473584,-639.20125042,0.00044109,2]
[313292896,1707095473594,-500.0,0.00044109,2]
[313292897,1707095473604,-480.81355862,0.00044109,2]
[313292898,1707095473614,-500.0,0.00044109,2]
[313292899,1707095473623,-500.0,0.00044109,2]
[313292900,1707095473633,-500.0,0.00044109,2]
[313292901,1707095473642,-608.21632566,0.00044109,2]
[313292902,1707095473652,-500.0,0.00044109,2]
[313292903,1707095473662,-500.0,0.00044109,2]
[313292904,1707095473672,-500.0,0.00044109,2]
[313292905,1707095473682,-776.5,0.00044109,2]
[313292906,1707095473691,-580.65623897,0.00044109,2]
[313292907,1707095473706,-500.0,0.00044109,2]
[313292908,1707095473715,-500.0,0.00044109,2]
[313292909,1707095473725,-171.0205,0.00044198,29]
[313292910,1707095473735,-2000.0,0.00044248,31]
[313292911,1707095473744,-16195.94,0.000443,7]
[313292912,1707095473754,-3559.0,0.0004439,2]
[313292913,1707095473764,-2356.0,0.0004439,2]
[313292914,1707095473774,-205.0,0.00044398,33]
[313292915,1707095473783,-2607.04702415,0.00044398,39]
[313292916,1707095473792,-1000.0,0.000444,13]
[313292917,1707095473802,-22135.53974149,0.00044412,15]
[313292918,1707095473811,-150.0,0.00044412,2]
[313292919,1707095473820,-1391.85876225,0.0004445,6]
[313292920,1707095473829,-3291.0381137,0.00044458,2]
[313292921,1707095473839,-30095.3583333,0.00044458,2]
[313292922,1707095473848,-2580.9576605,0.00044458,2]
[313292923,1707095473857,-2002.3861305,0.00044458,2]
[313292924,1707095473867,-429623.2574435,0.00044478,10]
[313292925,1707095473876,-332126.61811376,0.00044481,10]
[313292926,1707095473968,-8214.00271022,0.00044482,10]
[313292927,1707095473979,-1233.36950924,0.00044482,10]
[313292928,1707095473989,-429623.2574435,0.00044489,10]
[313292929,1707095473998,-429623.2574435,0.00044489,10]
[313292930,1707095474008,-2483.70788711,0.00044489,2]
[313292931,1707095474017,-332126.61811376,0.00044489,10]
[313292932,1707095474027,-1687.0,0.0004449,2]
[313292933,1707095474036,-332126.61811376,0.00044491,10]
[313292934,1707095474046,-10791.03137336,0.00044493,10]
[313292935,1707095474056,-445.86216269,0.00044496,10]
[313292936,1707095474067,-171.0205,0.00044498,29]
[313292937,1707095474075,-8214.00271022,0.00044498,10]
[313292938,1707095474085,-18496.1417157,0.000445,4]
[313292939,1707095474094,-300.0,0.000445,44]
[313292940,1707095474106,-1233.36950924,0.00044501,10]
[313292941,1707095474115,-445.86216269,0.00044508,10]
[313292942,1707095474125,-1233.36950924,0.00044508,10]
[313292943,1707095474135,-10791.03137336,0.00044509,10]
[313292944,1707095474145,-8214.00271022,0.00044513,10]
[313292945,1707095474154,-10791.03137336,0.00044514,10]
[313292946,1707095474163,-445.86216269,0.00044517,10]
[313292947,1707095474172,-1000.0,0.00044545,10]
[313292948,1707095474183,-191.25630105,0.00044546,2]
[313292949,1707095474193,-1693919.34866143,0.0004455,6]
[313292950,1707095474206,-1209.39547784,0.0004455,4]
[313292951,1707095474215,-385.31049203,0.0004455,15]
[313292952,1707095474224,-33908.25457791,0.0004455,4]
[313292953,1707095474233,-1596530.244062,0.0004455,6]
[313292954,1707095474243,-28950.0,0.0004459,2]
[313292955,1707095474252,-19133.0,0.0004459,2]
[313292956,1707095474262,-171.0205,0.00044598,31]
[313292957,1707095474271,-340000.0,0.000446,2]
[313292958,1707095474281,-398.18349642,0.0004475,30]
[313292959,1707095474291,-171.0205,0.00044798,29]
[313292960,1707095474300,-16195.94,0.000448,7]
[313292961,1707095474309,-300.0,0.000448,21]
[313292962,1707095474318,-200.0,0.000448,60]
[313292963,1707095474327,-150.0,0.000448,16]
[313292964,1707095474337,-4928.0,0.0004489,2]
[313292965,1707095474347,-3263.0,0.0004489,2]
[313292966,1707095474356,-166.0,0.000449,7]
[313292967,1707095474365,-933.8156262,0.000449,2]
[313292968,1707095474374,-300.0,0.000449,16]
[313292969,1707095474383,-500.0,0.00044931,2]
[313292970,1707095474392,-1031.1,0.00044931,7]
[313292971,1707095474401,-500.0,0.00044931,2]
[313292972,1707095474410,-500.0,0.00044931,2]
[313292973,1707095474419,-553.67,0.00044931,2]
[313292974,1707095474429,-500.0,0.00044931,2]
[313292975,1707095474438,-1044.03,0.00044931,2]
[313292976,1707095474448,-500.0,0.00044931,2]
[313292977,1707095474459,-277.36322324,0.00044931,2]
[313292978,1707095474469,-500.0,0.00044931,2]
[313292979,1707095474478,-803.85,0.00044931,30]
[313292980,1707095474487,-608.81,0.00044931,2]
[313292981,1707095474496,-911.94,0.00044931,7]
[313292982,1707095474506,-500.0,0.00044931,2]
[313292983,1707095474515,-1072.12,0.00044931,2]
[313292984,1707095474525,-500.0,0.00044931,2]
[313292985,1707095474534,-947.41,0.00044931,20]
[313292986,1707095474544,-500.0,0.00044931,2]
[313292987,1707095474553,-645.15,0.00044931,2]
[313292988,1707095474563,-1039.15,0.00044931,2]
[313292989,1707095474572,-1000.0,0.00044931,30]
[313292990,1707095474580,-500.0,0.00044931,2]
[313292991,1707095474589,-1171.17,0.00044931,2]
[313292992,1707095474598,-883.87,0.00044931,2]
[313292993,1707095474608,-828.79,0.00044931,2]
[313292994,1707095474617,-485.46913178,0.00044931,2]
[313292995,1707095474626,-623.3,0.00044931,2]
[313292996,1707095474635,-500.0,0.00044931,2]
[313292997,1707095474644,-3906.28,0.00044931,2]
[313292998,1707095474653,-500.0,0.00044931,2]
[313292999,1707095474662,-500.0,0.00044931,2]
[313293000,1707095474671,-500.0,0.00044931,2]
[313293001,1707095474680,-3442.61,0.00044931,2]
[313293002,1707095474689,-263.18747884,0.00044931,2]
[313293003,1707095474702,-500.0,0.00044931,2]
[313293004,1707095474711,-500.0,0.00044931,2]
[313293005,1707095474720,-500.0,0.00044931,2]
[313293006,1707095474729,-500.0,0.00044931,2]
[313293007,1707095474738,-500.0,0.00044931,2]
[313293008,1707095474747,-1766.17,0.00044931,5]
[313293009,1707095474756,-500.0,0.00044931,2]
[313293010,1707095474765,-717.49,0.00044931,2]
[313293011,1707095474775,-2896.55,0.00044931,2]
[313293012,1707095474784,-1943.62,0.00044931,2]
[313293013,1707095474793,-882.82,0.00044931,2]
[313293014,1707095474802,-500.0,0.00044931,2]
[313293015,1707095474811,-397.36917348,0.00044931,2]
[313293016,1707095474820,-500.0,0.00044931,2]
[313293017,1707095474829,-500.0,0.00044931,2]
[313293018,1707095474839,-500.0,0.00044931,2]
[313293019,1707095474848,-500.0,0.00044931,2]
[313293020,1707095474857,-500.0,0.00044931,2]
[313293021,1707095474866,-633.54,0.00044931,2]
[313293022,1707095474876,-2280.46,0.00044931,2]
[313293023,1707095474885,-666.48,0.00044931,2]
[313293024,1707095474894,-1000.0,0.00044931,7]
[313293025,1707095474904,-787.28,0.00044931,2]
[313293026,1707095474913,-1000.0,0.00044931,7]
[313293027,1707095474922,-381.81525748,0.00044931,2]
[313293028,1707095474931,-500.0,0.00044931,2]
[313293029,1707095474941,-500.0,0.00044931,2]
[313293030,1707095474953,-500.0,0.00044931,2]
[313293031,1707095474963,-500.0,0.00044931,2]
[313293032,1707095474972,-500.0,0.00044931,2]
[313293033,1707095474982,-500.0,0.00044931,2]
[313293034,1707095474990,-500.0,0.00044931,2]
[313293035,1707095474999,-500.0,0.00044931,2]
[313293036,1707095475009,-500.0,0.00044931,2]
[313293037,1707095475018,-500.0,0.00044931,2]
[313293038,1707095475027,-1162.55,0.00044931,2]
[313293039,1707095475036,-2177.23,0.00044931,5]
[313293040,1707095475046,-500.0,0.00044931,2]
[313293041,1707095475055,-598.05,0.00044931,2]
[313293042,1707095475065,-500.0,0.00044931,2]
[313293043,1707095475074,-500.97,0.00044931,2]
[313293044,1707095475083,-500.0,0.00044931,2]
[313293045,1707095475093,-323.11585537,0.00044931,2]
[313293046,1707095475104,-500.0,0.00044931,2]
[313293047,1707095475114,-500.0,0.00044931,2]
[313293048,1707095475122,-500.0,0.00044931,2]
[313293049,1707095475131,-500.0,0.00044931,2]
[313293050,1707095475140,-500.0,0.00044931,2]
[313293051,1707095475149,-776.5,0.00044931,2]
[313293052,1707095475159,-500.0,0.00044931,2]
[313293053,1707095475168,-500.0,0.00044931,2]
[313293054,1707095475178,-1000.0,0.00044958,30]
[313293055,1707095475187,-375.47,0.00044962,2]
[313293056,1707095475196,-246.20658187,0.0004498,5]
[313293057,1707095475208,-205.9925076,0.0004498,5]
[313293058,1707095475218,-5000.0,0.00044986,4]
[313293059,1707095475227,-633.0,0.0004499,2]
[313293060,1707095475237,-100000.0,0.00045,35]
[313293061,1707095475247,-292.82250194,0.00045,4]
[313293062,1707095475256,-1940766.92656195,0.00045,4]
[313293063,1707095475344,-302.64868085,0.00045,14]
[313293064,1707095475354,-4682.51432108,0.00045,17]
[313293065,1707095475363,-168.75556437,0.00045,10]
[313293066,1707095475372,-847.23745251,0.00045,4]
[313293067,1707095475382,-3010.0,0.00045,14]
[313293068,1707095475391,-849.74665875,0.00045,120]
[313293069,1707095475400,-953.20880463,0.00045,30]
[313293070,1707095475409,-500.0,0.00045,15]
[313293071,1707095475418,-5000.0,0.00045,30]
[313293072,1707095475427,-161.62651016,0.00045,30]
[313293073,1707095475436,-7462.12977086,0.00045,60]
[313293074,1707095475445,-442.87348806,0.00045,30]
[313293075,1707095475458,-1000.0,0.00045,120]
[313293076,1707095475468,-1000.0,0.00045,15]
[313293077,1707095475477,-5000.0,0.00045,2]
[313293078,1707095475487,-108018.73139128,0.00045,3]
[313293079,1707095475496,-5018.07909164,0.00045,3]
[313293080,1707095475505,-300.0,0.00045,45]
[313293081,1707095475515,-894.0,0.00045,7]
[313293082,1707095475529,-777.84562129,0.00045,30]
[313293083,1707095475538,-15367.38,0.00045,7]
[313293084,1707095475548,-12164.96,0.00045,7]
[313293085,1707095475557,-12000.0,0.00045,120]
[313293086,1707095475567,-5000.0,0.00045,120]
[313293087,1707095475576,-2071.27,0.00045,120]
[313293088,1707095475586,-1750.0,0.00045,3]
[313293089,1707095475595,-569.427807,0.00045,20]
[313293090,1707095475605,-2483.70788711,0.00045,2]
[313293091,1707095475614,-11718.81,0.00045014,2]
[313293092,1707095475623,-152.0,0.00045032,6]
[313293093,1707095475632,-155.14409778,0.00045032,5]
[313293094,1707095475642,-152.0,0.00045032,5]
[313293095,1707095475651,-12000.0,0.000451,120]
[313293096,1707095475663,-300.0,0.000451,21]
[313293097,1707095475673,-67675.0795,0.0004514,30]
[313293098,1707095475682,-171.0205,0.00045198,43]
[313293099,1707095475691,-12000.0,0.000452,120]